bitfinex/quotes_ETHUSD_20240713
["timestamp","ask_amount","ask_price","bid_price","bid_amount"]
[1720843561743,2.00799621,3128.5,3128.4,2.23756]
[1720843561943,2.00799621,3128.5,3128.4,3.05356]
[1720843563141,2.297,3129.0,3128.5,2.23745]
[1720843563346,2.34015274,3128.8,3128.6,0.816]
[1720843564359,2.34015274,3128.7,3128.4,3.05356]
[1720843564884,0.04506395,3128.6,3128.4,3.05356]
[1720843569600,2.00661946,3128.5,3128.4,3.05356]
[1720843569807,2.05160191,3128.5,3128.4,3.05356]
[1720843569985,0.0449834,3128.5,3128.4,3.05356]
[1720843570166,2.34105492,3128.7,3128.4,3.05356]
[1720843570370,2.05151848,3128.5,3128.4,3.05356]
[1720843570564,2.34105492,3128.7,3128.4,3.05356]
[1720843570879,0.0449834,3128.5,3128.4,3.05356]
[1720843571074,2.34105492,3128.7,3128.4,3.05356]
[1720843571280,0.0449834,3128.5,3128.4,3.05356]
[1720843571479,2.34105492,3128.7,3128.4,0.816]
[1720843571676,2.34105492,3128.7,3128.0,2.391]
[1720843571677,0.04501303,3128.5,3128.0,4.6288]
[1720843571880,2.34105492,3128.6,3128.3,0.816]
[1720843572075,0.04493248,3128.4,3128.3,0.816]
[1720843572276,2.34105492,3128.6,3128.3,0.816]
[1720843572790,0.04501303,3128.5,3128.3,0.816]
[1720843574272,0.37964204,3128.5,3128.3,0.816]
[1720843575505,2.72093315,3128.5,3128.3,0.816]
[1720843575683,2.2802,3128.4,3128.1,0.816]
[1720843575877,4.62149111,3128.4,3128.1,0.816]
[1720843576083,0.04485192,3128.3,3128.1,0.816]
[1720843576281,2.00685117,3128.2,3128.1,0.816]
[1720843576671,2.05162252,3128.2,3128.1,0.816]
[1720843576877,2.05167089,3128.2,3128.1,0.816]
[1720843577423,0.04477135,3128.2,3128.1,0.816]
[1720843577579,2.2802,3128.4,3128.1,0.816]
[1720843577775,0.04485192,3128.3,3128.1,0.816]
[1720843578099,2.00716184,3128.2,3128.1,0.816]
[1720843578505,2.05193319,3128.2,3128.1,0.816]
[1720843579182,0.04477135,3128.2,3128.1,0.816]
[1720843579389,4.62182751,3128.4,3128.1,0.816]
[1720843579585,0.04485192,3128.3,3128.1,0.816]
[1720843580009,0.04485192,3128.3,3127.9,3.816]
[1720843580191,0.04485192,3128.3,3127.9,0.816]
[1720843580192,2.00734666,3128.0,3127.9,0.816]
[1720843580602,2.05195687,3128.0,3127.9,0.816]
[1720843581414,0.04461021,3128.0,3127.9,0.816]
[1720843582178,0.04461021,3128.0,3127.9,1.50055692]
[1720843582687,2.00734666,3128.2,3127.9,3.73841692]
[1720843582880,2.00734666,3128.2,3128.1,0.816]
[1720843583280,2.05210391,3128.2,3128.1,0.816]
[1720843583830,0.04475725,3128.2,3128.1,0.816]
[1720843584030,2.00753869,3128.2,3128.1,1.18984169]
[1720843584247,2.05229594,3128.2,3128.1,1.18984169]
[1720843585145,2.05233404,3128.2,3128.1,1.18984169]
[1720843585449,0.04475725,3128.2,3128.1,1.18984169]
[1720843585741,2.00766549,3128.2,3128.1,1.18984169]
[1720843585948,0.04475725,3128.2,3128.1,1.18984169]
[1720843586148,2.05241682,3128.2,3128.1,1.18984169]
[1720843586347,2.00769249,3128.2,3128.1,1.18984169]
[1720843586535,2.05244974,3128.2,3128.1,1.18984169]
[1720843587211,0.04475725,3128.2,3128.1,1.18984169]
[1720843587419,2.34234824,3128.4,3128.1,1.18984169]
[1720843587716,2.05253845,3128.2,3128.1,1.18984169]
[1720843587921,2.67697725,3128.5,3128.1,1.18984169]
[1720843587922,2.34238509,3128.4,3128.1,1.18984169]
[1720843588104,2.05252085,3128.2,3128.1,1.18984169]
[1720843588305,2.0077636,3128.2,3128.1,1.18984169]
[1720843588536,2.05252085,3128.2,3128.1,1.18984169]
[1720843590236,0.04475725,3128.2,3128.1,1.18984169]
[1720843590833,2.00767891,3128.2,3128.1,1.18984169]
[1720843591147,2.05257536,3128.2,3128.1,1.18984169]
[1720843592735,0.04489645,3128.2,3128.1,3.42762169]
[1720843593841,0.04489645,3128.2,3128.1,5.66540169]
[1720843594230,2.00782079,3128.3,3128.2,2.2377]
[1720843594430,2.00782079,3128.3,3128.2,3.52545978]
[1720843596518,0.33462901,3128.5,3128.3,2.2376]
[1720843596712,0.33462901,3128.5,3128.4,0.816]
[1720843598617,0.33462901,3128.5,3128.4,3.05356]
[1720843598818,2.34256774,3128.5,3128.4,3.63624491]
[1720843599018,0.33462901,3128.5,3128.4,3.63624491]
[1720843599246,2.34247993,3128.5,3128.4,3.63624491]
[1720843600656,2.34257662,3128.5,3128.4,3.63624491]
[1720843601041,2.34255935,3128.5,3128.4,3.63624491]
[1720843601919,2.34258073,3128.5,3128.4,3.63624491]
[1720843602263,2.34251863,3128.5,3128.4,3.63624491]
[1720843602434,0.38000349,3128.5,3128.4,3.63624491]
[1720843602821,2.38794315,3128.5,3128.4,3.63624491]
[1720843603014,2.38789447,3128.5,3128.4,3.63624491]
[1720843603420,0.38000349,3128.5,3128.4,3.63624491]
[1720843604229,2.38795047,3128.5,3128.4,3.63624491]
[1720843604440,0.38000349,3128.5,3128.4,3.63624491]
[1720843604643,2.38805923,3128.5,3128.4,5.87380491]
[1720843604845,0.38000349,3128.5,3128.4,5.87380491]
[1720843607322,0.38000349,3128.5,3128.4,8.19830491]
[1720843607534,2.05314914,3128.5,3128.4,8.19830491]
[1720843607941,2.05314914,3128.5,3128.4,10.43586491]
[1720843607942,2.05313585,3128.5,3128.4,10.43586491]
[1720843608146,2.05313585,3128.5,3128.4,13.43586491]
[1720843608147,0.33462901,3128.5,3128.4,13.43586491]
[1720843608344,0.38012118,3128.5,3128.4,13.43586491]
[1720843610926,0.33462901,3128.5,3128.4,13.43586491]
[1720843611162,0.38012753,3128.5,3128.4,13.43586491]
[1720843611657,0.33462901,3128.5,3128.4,13.43586491]
[1720843611859,0.38012753,3128.5,3128.4,13.43586491]
[1720843615119,0.33462901,3128.5,3128.4,13.43586491]
[1720843615416,0.38012753,3128.5,3128.4,13.43586491]
[1720843618281,0.33462901,3128.5,3128.4,13.43586491]
[1720843618480,0.38019456,3128.5,3128.4,13.43586491]
[1720843621605,0.33462901,3128.5,3128.4,13.43586491]
[1720843621912,0.38019668,3128.5,3128.4,13.43586491]
[1720843625920,0.38019668,3128.5,3128.4,8.05780491]
[1720843626123,0.38019668,3128.5,3128.4,8.87380491]
[1720843626323,0.33462901,3128.5,3128.4,8.87380491]
[1720843626599,0.38007992,3128.5,3128.4,8.87380491]
[1720843627834,0.33462901,3128.5,3128.4,8.87380491]
[1720843628234,0.38008275,3128.5,3128.4,8.87380491]
[1720843634522,0.33462901,3128.5,3128.4,8.87380491]
[1720843634737,0.38008275,3128.5,3128.4,8.87380491]
[1720843638115,0.33462901,3128.5,3128.4,5.82024491]
[1720843638350,2.05260111,3128.5,3128.4,6.05356]
[1720843638651,0.38008275,3128.5,3128.4,6.05356]
[1720843639430,2.73288275,3128.5,3127.4,0.1148804]
[1720843639637,2.73288275,3128.5,3127.8,0.816]
[1720843639638,4.02527531,3127.9,3127.8,0.816]
[1720843639837,2.3528,3127.9,3127.8,0.816]
[1720843640038,2.39776195,3127.9,3127.8,0.816]
[1720843640236,2.73250787,3127.9,3127.8,0.816]
[1720843641124,2.73250787,3127.9,3127.8,3.05399]
[1720843641325,2.73250787,3127.9,3127.8,6.05399]
[1720843641530,4.40398019,3127.9,3127.8,6.05399]
[1720843641961,4.40397016,3127.9,3127.8,6.05399]
[1720843643125,2.73250787,3127.9,3127.8,6.05399]
[1720843644162,0.37970787,3127.9,3127.8,6.05399]
[1720843645401,0.37970787,3127.9,3127.8,6.94705092]
[1720843648453,0.33474592,3127.9,3127.8,6.94705092]
[1720843650289,0.33474592,3127.9,3127.8,9.18504092]
[1720843652206,0.37963815,3127.9,3127.8,9.18504092]
[1720843654405,0.37963815,3127.9,3127.8,8.29198]
[1720843655375,0.33474592,3127.9,3127.8,8.29198]
[1720843655710,0.37963815,3127.9,3127.8,8.29198]
[1720843662439,0.33474592,3127.9,3127.8,8.29198]
[1720843662648,0.37952066,3127.9,3127.8,8.29198]
[1720843667659,2.69752066,3127.9,3127.8,8.29198]
[1720843669361,2.6967256,3127.9,3127.8,8.29198]
[1720843671762,0.3787256,3127.9,3127.8,8.29198]
[1720843674742,0.3787256,3127.9,3127.8,6.05399]
[1720843675379,0.33474592,3127.9,3127.8,6.05399]
[1720843675581,0.37772394,3127.9,3127.8,6.05399]
[1720843675962,0.33474592,3127.9,3127.8,6.05399]
[1720843676269,0.37772394,3127.9,3127.8,6.05399]
[1720843681160,2.04909534,3127.9,3127.8,6.05399]
[1720843681770,0.37772394,3127.9,3127.8,6.05399]
[1720843682091,2.04951448,3127.9,3127.8,6.05399]
[1720843682462,0.37772394,3127.9,3127.8,6.05399]
[1720843682768,2.00705485,3127.9,3127.8,6.05399]
[1720843682975,2.05002863,3127.9,3127.8,6.05399]
[1720843683269,2.05053395,3127.9,3127.8,6.05399]
[1720843683492,0.3777197,3127.9,3127.8,6.05399]
[1720843683659,0.3777197,3127.9,3127.8,3.05399]
[1720843685476,0.3777197,3127.9,3127.8,0.816]
[1720843685979,2.6728197,3127.9,3127.7,0.63856921]
[1720843686154,0.46819458,3127.8,3127.7,0.63856921]
[1720843686354,0.04277572,3127.8,3127.7,0.63856921]
[1720843686688,2.38675614,3127.8,3127.7,0.63856921]
[1720843687154,0.04277572,3127.8,3127.7,0.63856921]
[1720843687954,4.68185614,3127.8,3127.7,0.63856921]
[1720843688150,5.18351635,3127.8,3127.7,0.63856921]
[1720843688876,2.83953593,3127.8,3127.7,0.63856921]
[1720843689248,5.18117661,3127.8,3127.7,0.63856921]
[1720843692165,2.83953593,3127.8,3127.7,0.63856921]
[1720843694887,5.60376921,3127.8,3127.7,0.63856921]
[1720843695074,5.60278509,3127.8,3127.7,0.63856921]
[1720843695251,2.83953593,3127.8,3127.7,0.63856921]
[1720843696783,5.07752593,3127.8,3127.7,0.63856921]
[1720843697389,7.31551593,3127.8,3127.7,0.63856921]
[1720843700277,9.65209418,3127.8,3127.7,0.63856921]
[1720843700685,7.31551593,3127.8,3127.7,0.63856921]
[1720843701397,9.65173794,3127.8,3127.7,0.63856921]
[1720843702698,7.31551593,3127.8,3127.7,0.63856921]
[1720843702889,9.65140822,3127.8,3127.7,0.63856921]
[1720843703403,11.88937246,3127.8,3127.7,0.63856921]
[1720843705172,11.88937246,3127.8,3125.8,2.2573]
[1720843705173,0.21991568,3126.1,3125.8,2.2573]
[1720843705375,2.239,3126.4,3125.9,0.816]
[1720843705376,0.03848181,3126.0,3125.9,0.816]
[1720843705606,1.33388269,3126.1,3125.9,0.816]
[1720843705770,0.03846981,3126.0,3125.9,0.816]
[1720843706401,1.33388269,3126.2,3125.9,0.816]
[1720843706603,0.03855047,3126.1,3125.9,0.816]
[1720843706918,0.03855047,3126.1,3125.9,3.816]
[1720843707115,0.03855047,3126.1,3125.8,7.49666]
[1720843707273,1.33388269,3126.3,3125.9,3.816]
[1720843707582,1.66720446,3126.4,3125.9,3.816]
[1720843707583,1.37247122,3126.2,3125.9,3.816]
[1720843708174,0.03858853,3126.2,3125.9,3.816]
[1720843708413,1.33388269,3126.3,3125.9,3.816]
[1720843708578,0.03850787,3126.1,3125.9,3.816]
[1720843708777,1.33388269,3126.3,3125.9,3.816]
[1720843708996,0.03858853,3126.2,3125.9,3.816]
[1720843709215,1.33388269,3126.4,3125.9,3.816]
[1720843709404,0.03850787,3126.1,3125.9,3.816]
[1720843709575,1.33388269,3126.4,3125.9,3.816]
[1720843709789,0.03862558,3126.3,3125.9,3.816]
[1720843710683,3.57285269,3126.5,3125.9,3.816]
[1720843711083,0.03874984,3126.4,3125.9,3.816]
[1720843711689,0.03874984,3126.4,3125.9,6.05534]
[1720843714313,0.03874984,3126.4,3125.9,8.29463]
[1720843714610,8.7604563,3126.7,3126.3,0.816]
[1720843715192,7.43,3126.7,3126.3,0.816]
[1720843718299,0.03887835,3126.6,3126.3,0.816]
[1720843719727,0.03887835,3126.6,3126.2,4.49643]
[1720843721186,3.5691963,3126.8,3126.2,4.49643]
[1720843721388,0.03893378,3126.7,3126.2,4.49643]
[1720843724245,1.36939008,3126.7,3126.2,4.49643]
[1720843724924,1.36939008,3126.7,3126.2,6.73552]
[1720843725822,1.36939008,3126.7,3126.2,4.49639]
[1720843726028,1.3698399,3126.7,3126.2,4.49639]
[1720843726427,1.3698399,3126.7,3126.2,6.73548]
[1720843726814,1.36983736,3126.7,3126.2,6.73548]
[1720843729106,1.33090358,3126.6,3126.2,6.73548]
[1720843729292,0.03775023,3126.5,3126.2,6.73548]
[1720843729894,0.03775023,3126.5,3126.3,2.23906]
[1720843731300,1.36865381,3126.5,3126.3,2.23906]
[1720843732530,1.36865381,3126.5,3126.2,2.2573]
[1720843732733,1.36865381,3126.5,3126.2,4.49643]
[1720843732921,1.36865381,3126.5,3126.2,6.73552]
[1720843733211,1.33090358,3126.4,3126.2,4.49639]
[1720843733412,0.03766262,3126.3,3126.2,4.49639]
[1720843733639,0.03766262,3126.3,3126.2,2.23909]
[1720843735305,1.3685662,3126.3,3126.2,2.23909]
[1720843739122,0.03766262,3126.3,3126.2,2.23909]
[1720843739806,1.37239985,3126.3,3126.2,3.05509]
[1720843740251,1.37239985,3126.3,3126.2,5.29423]
[1720843740458,1.37239985,3126.3,3126.2,8.445619]
[1720843740608,0.03766262,3126.3,3126.2,8.445619]
[1720843740814,1.33473723,3126.5,3126.4,4.47798]
[1720843741047,1.33473723,3126.5,3126.4,7.67758]
[1720843741048,1.37325287,3126.5,3126.4,7.67758]
[1720843741345,1.37325287,3126.5,3126.4,8.5285137]
[1720843741933,0.03851564,3126.5,3126.4,8.5285137]
[1720843742318,1.33473723,3126.7,3126.6,4.4777]
[1720843742679,1.33473723,3126.7,3126.6,7.6773]
[1720843743109,7.43,3127.1,3126.9,2.2386]
[1720843743306,7.43,3127.1,3126.9,3.0546]
[1720843744123,1.66967858,3127.0,3126.9,3.0546]
[1720843744331,1.70873149,3127.0,3126.9,5.29319]
[1720843746066,1.70885179,3127.0,3126.9,5.29319]
[1720843746230,0.03891882,3127.0,3126.9,5.29319]
[1720843746559,9.8766,3127.6,3127.1,2.23847]
[1720843746560,2.00422296,3127.3,3127.1,2.23847]
[1720843747211,2.00422296,3127.3,3127.0,2.23854]
[1720843747464,2.00422296,3127.3,3127.1,2.23848]
[1720843747958,0.03907673,3127.2,3127.1,2.23849]
[1720843748137,2.00422296,3127.3,3127.1,2.23849]
[1720843748342,2.00422296,3127.2,3127.1,2.23849]
[1720843749869,0.81025759,3127.3,3127.1,2.23849]
[1720843750077,2.00440448,3127.3,3127.1,2.23849]
[1720843751232,2.00440448,3127.3,3126.9,5.29321]
[1720843751433,1.67014136,3127.0,3126.9,5.29321]
[1720843751835,1.70830743,3127.0,3126.9,5.29321]
[1720843753035,0.03816607,3127.0,3126.9,5.29321]
[1720843753635,1.70814869,3127.0,3126.9,5.29321]
[1720843753853,0.03816607,3127.0,3126.9,5.29321]
[1720843754161,1.70799133,3127.0,3126.9,5.29321]
[1720843754630,0.03816607,3127.0,3126.9,5.29321]
[1720843755934,1.37390884,3127.0,3126.9,5.29321]
[1720843756266,1.37390884,3127.0,3126.9,8.301161]
[1720843756651,0.03816607,3127.0,3126.9,8.301161]
[1720843759367,0.03816607,3127.0,3126.9,5.29321]
[1720843759688,0.03816607,3127.0,3126.9,3.05459]
[1720843760039,1.70765044,3127.0,3126.9,3.05459]
[1720843760255,0.03816607,3127.0,3126.9,3.05459]
[1720843760590,1.70816585,3127.0,3126.9,3.05459]
[1720843760883,1.37441324,3127.0,3126.9,3.05459]
[1720843763845,1.37430761,3127.0,3126.9,3.05459]
[1720843764075,1.37430761,3127.0,3126.9,0.816]
[1720843764407,1.37430539,3127.0,3126.9,0.816]
[1720843767411,1.37435514,3127.0,3126.9,0.816]
[1720843769420,2.2751,3126.9,3126.3,4.6516]
[1720843769624,2.2751,3126.9,3126.2,0.816]
[1720843769625,1.33530163,3126.4,3126.2,0.816]
[1720843769786,1.33530163,3126.3,3126.2,0.816]
[1720843769986,1.70763491,3126.3,3126.2,0.816]
[1720843770821,1.70740023,3126.3,3126.2,0.816]
[1720843772023,1.37365907,3126.3,3126.2,0.816]
[1720843773421,1.37369246,3126.3,3126.2,0.816]
[1720843774519,0.03850787,3126.3,3126.2,0.816]
[1720843776293,1.37374559,3126.3,3126.2,0.816]
[1720843777443,1.37374559,3126.3,3126.1,5.2392]
[1720843777616,1.37374559,3126.3,3126.2,0.816]
[1720843779337,0.03850787,3126.3,3126.2,0.816]
[1720843779635,2.00297423,3126.5,3126.2,0.816]
[1720843779819,2.65103465,3126.5,3126.2,0.816]
[1720843780426,0.03771646,3126.4,3126.2,0.816]
[1720843780614,1.66899476,3126.3,3126.2,0.816]
[1720843780815,1.70663054,3126.3,3126.2,0.816]
[1720843781123,1.70662555,3126.3,3126.2,0.816]
[1720843783185,1.70662555,3126.3,3126.0,0.816]
[1720843783359,1.33522867,3126.1,3126.0,0.816]
[1720843783667,1.37259285,3126.1,3126.0,0.816]
[1720843784584,0.03736418,3126.1,3126.0,0.816]
[1720843784752,1.37248322,3126.1,3126.0,0.816]
[1720843784950,1.33511904,3126.1,3126.0,0.816]
[1720843785154,1.37263708,3126.1,3126.0,0.816]
[1720843785578,1.70641478,3126.1,3126.0,0.816]
[1720843787566,1.70625055,3126.1,3126.0,0.816]
[1720843787891,0.03751804,3126.1,3126.0,0.816]
[1720843788188,1.66870825,3126.1,3126.0,0.816]
[1720843788376,1.66870825,3126.2,3126.0,0.816]
[1720843788577,1.70605945,3126.1,3126.0,0.816]
[1720843788776,0.0373512,3126.1,3126.0,0.816]
[1720843788989,1.70605945,3126.1,3126.0,0.816]
[1720843789564,0.0373512,3126.1,3126.0,0.816]
[1720843792600,1.37168421,3126.1,3126.0,0.816]
[1720843794909,0.0373512,3126.1,3126.0,0.816]
[1720843795072,1.33422897,3126.1,3126.0,0.816]
[1720843795404,1.37011579,3126.1,3126.0,0.816]
[1720843796613,0.03588682,3126.1,3126.0,0.816]
[1720843796906,1.37011579,3126.1,3126.0,0.816]
[1720843797491,0.03588682,3126.1,3126.0,0.816]
[1720843798226,1.37011579,3126.1,3126.0,0.816]
[1720843798413,1.37011579,3126.1,3126.0,3.05528]
[1720843798414,0.03588682,3126.1,3126.0,3.05528]
[1720843798600,0.03588682,3126.1,3126.0,3.814823]
[1720843798918,1.33422897,3126.3,3126.1,2.23919]
[1720843799089,1.33422897,3126.3,3126.2,0.816]
[1720843799296,1.66781626,3126.4,3126.2,0.816]
[1720843799500,1.33435637,3126.3,3126.2,0.816]
[1720843800402,1.36920856,3126.3,3126.2,0.816]
[1720843801307,0.03485219,3126.3,3126.2,0.816]
[1720843801732,1.36936134,3126.3,3126.2,0.816]
[1720843802100,0.03485219,3126.3,3126.2,0.816]
[1720843803093,0.03485219,3126.3,3126.2,3.05514]
[1720843803298,1.66801665,3126.4,3126.2,3.05514]
[1720843803496,1.66801665,3126.3,3126.2,3.05514]
[1720843803735,1.66801665,3126.4,3126.2,3.05514]
[1720843804236,0.0350498,3126.3,3126.2,3.05514]
[1720843804726,1.70368624,3126.3,3126.2,3.05514]
[1720843807333,1.70441706,3126.3,3126.2,3.05514]
[1720843807729,0.0350498,3126.3,3126.2,3.05514]
[1720843807934,1.70460538,3126.3,3126.2,3.05514]
[1720843809571,1.70460538,3126.3,3126.2,8.243521]
[1720843809572,0.0350498,3126.3,3126.2,8.243521]
[1720843810154,1.37128933,3126.3,3126.2,8.243521]
[1720843810371,0.0350498,3126.3,3126.2,8.243521]
[1720843811359,1.37128933,3126.3,3126.2,8.243521]
[1720843813287,0.0350498,3126.3,3126.2,8.243521]
[1720843813425,1.37128933,3126.3,3126.2,8.243521]
[1720843814324,0.0350498,3126.3,3126.2,8.243521]
[1720843814814,1.37272503,3126.3,3126.2,8.243521]
[1720843815015,1.33767523,3126.3,3126.2,8.243521]
[1720843815181,1.37221474,3126.3,3126.2,8.243521]
[1720843815371,0.03453951,3126.3,3126.2,8.243521]
[1720843816479,0.03453951,3126.3,3126.2,11.243521]
[1720843817309,1.37242311,3126.3,3126.2,11.243521]
[1720843818077,0.03453951,3126.3,3126.2,11.243521]
[1720843818307,1.37233865,3126.3,3126.2,8.243521]
[1720843820000,1.37233865,3126.3,3126.2,7.71408]
[1720843820279,0.03453951,3126.3,3126.2,3.05514]
[1720843820479,2.00666171,3126.4,3126.2,3.05514]
[1720843820699,0.03364804,3126.3,3126.2,3.05514]
[1720843820923,2.04030975,3126.3,3126.2,3.05514]
[1720843821345,0.03364804,3126.3,3126.2,3.05514]
[1720843821666,2.03996084,3126.3,3126.2,3.05514]
[1720843821807,0.03364804,3126.3,3126.2,0.816]
[1720843822136,2.03996084,3126.3,3126.2,0.816]
[1720843822729,0.03364804,3126.3,3126.2,0.816]
[1720843824575,0.03364804,3126.3,3126.1,2.23921]
[1720843824746,0.03364804,3126.3,3126.2,0.816]
[1720843825135,2.00641727,3126.4,3126.2,0.816]
[1720843825326,0.03363247,3126.3,3126.2,0.816]
[1720843825849,0.03363247,3126.3,3126.1,2.23921]
[1720843826044,0.03363247,3126.3,3126.2,0.816]
[1720843827146,0.03363247,3126.3,3125.9,2.23932]
[1720843827350,0.03363247,3126.3,3126.1,0.816]
[1720843828755,2.00645609,3126.4,3126.1,0.816]
[1720843829051,2.00645609,3126.4,3126.3,0.816]
[1720843831660,2.04017136,3126.4,3126.3,0.816]
[1720843831830,0.03371527,3126.4,3126.3,0.816]
[1720843832039,2.0721747,3126.4,3126.3,0.816]
[1720843832339,2.07305699,3126.4,3126.3,0.816]
[1720843832833,2.07305699,3126.4,3126.1,0.816]
[1720843835257,0.06659743,3126.4,3126.1,0.816]
[1720843835440,2.07337352,3126.4,3126.1,0.816]
[1720843835760,0.06551163,3126.3,3126.1,0.816]
[1720843836157,2.07232963,3126.3,3126.1,0.816]
[1720843837358,0.06551163,3126.3,3126.1,0.816]
[1720843837564,2.00692475,3126.3,3126.1,0.816]
[1720843838731,0.06560105,3126.2,3126.1,0.816]
[1720843838933,2.00712827,3126.3,3126.1,0.816]
[1720843839144,0.06560105,3126.2,3126.1,0.816]
[1720843839340,2.00712827,3126.3,3126.1,0.816]
[1720843839540,0.06558681,3126.2,3126.1,0.816]
[1720843839739,2.00712827,3126.3,3126.1,0.816]
[1720843842366,2.00735361,3126.3,3126.1,0.816]
[1720843845677,2.289,3126.6,3126.1,0.816]
[1720843845970,2.00764854,3126.3,3126.1,3.0552]
[1720843846177,2.00766521,3126.3,3126.1,3.0552]
[1720843847663,2.00766521,3126.3,3126.2,2.23914]
[1720843848473,2.34226903,3126.6,3126.3,2.23902]
[1720843848676,2.34226903,3126.6,3126.4,0.816]
[1720843848875,2.34226903,3126.6,3126.4,3.05495]
[1720843849074,5.25550529,3126.9,3126.4,3.05495]
[1720843849075,2.4887,3126.9,3126.5,2.23892]
[1720843849283,2.34235994,3126.8,3126.5,2.23892]
[1720843851844,2.007779,3126.6,3126.5,2.23892]
[1720843852677,2.00778657,3126.6,3126.5,2.23892]
[1720843855982,2.4887,3126.9,3126.5,2.23892]
[1720843856183,2.00755797,3126.6,3126.5,2.23892]
[1720843856571,2.00754458,3126.6,3126.5,2.23892]
[1720843859606,2.00749923,3126.6,3126.5,2.23892]
[1720843861602,2.00749923,3126.7,3126.6,2.23885]
[1720843861801,2.00749923,3126.8,3126.7,4.47756]
[1720843861996,2.4887,3127.5,3126.7,4.47756]
[1720843861997,2.34240973,3127.2,3126.9,2.23858]
[1720843862167,5.25567149,3127.5,3127.0,0.816]
[1720843862168,2.00781975,3127.1,3127.0,0.816]
[1720843862787,2.00781975,3127.1,3127.0,3.05456]
[1720843863009,2.34240973,3127.4,3127.2,2.23842]
[1720843863162,2.34240973,3127.4,3127.2,3.05442]
[1720843864702,2.34240973,3127.5,3127.2,3.05442]
[1720843864989,0.75980812,3127.5,3127.2,3.05442]
[1720843865180,0.75980812,3127.5,3127.3,2.23831]
[1720843865181,2.34150143,3127.5,3127.3,2.23831]
[1720843865571,2.34161858,3127.6,3127.3,2.23831]
[1720843865773,2.00668748,3127.4,3127.3,2.23831]
[1720843866001,2.07388015,3127.4,3127.3,2.23831]
[1720843867471,2.07300593,3127.4,3127.3,2.23831]
[1720843867860,2.07303802,3127.4,3127.3,2.23831]
[1720843868601,0.06719267,3127.4,3127.3,2.23831]
[1720843871577,2.00584535,3127.6,3127.3,2.23831]
[1720843871786,0.06728991,3127.5,3127.3,2.23831]
[1720843872201,0.06728991,3127.5,3127.4,3.05428]
[1720843872364,0.06728991,3127.5,3127.4,5.82183]
[1720843873563,1.67038365,3127.8,3127.6,2.23813]
[1720843873809,1.67038365,3127.8,3127.6,3.05413]
[1720843873810,0.0676376,3127.7,3127.6,3.05413]
[1720843874304,1.67038365,3127.8,3127.7,2.23806]
[1720843874617,2.00452359,3128.0,3127.7,2.23806]
[1720843875168,0.24821,3128.1,3127.7,2.23806]
[1720843875369,2.4821,3127.9,3127.3,2.23831]
[1720843875568,1.33560264,3127.5,3127.3,4.47661]
[1720843875769,1.33560264,3127.4,3127.3,4.47661]
[1720843875993,1.66922997,3127.5,3127.3,2.2383]
[1720843876181,1.33535467,3127.4,3127.3,2.2383]
[1720843876378,1.33521984,3127.4,3127.3,2.2383]
[1720843877571,1.33521984,3127.4,3127.3,2.767571]
[1720843877771,1.33521984,3127.4,3127.3,5.047271]
[1720843878781,2.4821,3127.9,3127.4,2.23826]
[1720843879109,1.33488104,3127.5,3127.4,2.23826]
[1720843879275,1.33488104,3127.5,3127.4,3.05426]
[1720843879675,1.33488104,3127.5,3127.4,3.811497]
[1720843879906,1.6686013,3127.6,3127.5,2.2382]
[1720843879907,1.33488104,3127.6,3127.5,2.2382]
[1720843882277,1.33467216,3127.6,3127.5,2.2382]
[1720843882588,1.33467216,3127.7,3127.5,2.2382]
[1720843882789,1.33467216,3127.7,3127.6,0.816]
[1720843883608,1.66834021,3127.8,3127.6,0.816]
[1720843884319,1.66834021,3127.7,3127.6,0.816]
[1720843884503,1.3344873,3127.7,3127.6,0.816]
[1720843884675,1.66834021,3127.8,3127.6,0.816]
[1720843885506,2.2949,3127.8,3127.5,2.23815]
[1720843885710,1.33450401,3127.6,3127.5,2.23815]
[1720843886400,1.66811717,3127.7,3127.5,2.23815]
[1720843888316,2.2949,3127.8,3127.5,2.23815]
[1720843888495,1.66836111,3127.7,3127.5,2.23815]
[1720843889081,1.66838188,3127.7,3127.5,2.23815]
[1720843890217,1.66838188,3127.6,3127.5,2.23815]
[1720843890715,1.66838188,3127.6,3127.5,3.05415]
[1720843890919,1.66838188,3127.7,3127.5,3.05415]
[1720843891087,1.66838188,3127.6,3127.5,3.05415]
[1720843891488,1.66838188,3127.6,3127.5,0.816]
[1720843891696,3.96328188,3127.6,3127.5,0.816]
[1720843892101,2.2949,3127.6,3127.5,0.816]
[1720843899030,2.00492522,3127.7,3127.5,0.816]
[1720843899322,2.2949,3127.8,3127.5,0.816]
[1720843899646,2.07201087,3127.7,3127.5,0.816]
[1720843900102,2.00513019,3127.6,3127.5,0.816]
[1720843900496,2.07193131,3127.6,3127.5,0.816]
[1720843901630,2.07193131,3127.6,3127.3,3.0543]
[1720843902604,2.07193131,3127.6,3127.3,0.816]
[1720843902925,2.07301476,3127.6,3127.3,0.816]
[1720843904100,2.00621364,3127.5,3127.3,0.816]
[1720843904501,0.06664199,3127.4,3127.3,0.816]
[1720843906916,2.00767903,3127.5,3127.3,0.816]
[1720843907231,0.06664199,3127.4,3127.3,0.816]
[1720843907802,2.07432102,3127.4,3127.3,0.816]
[1720843908829,2.07530594,3127.4,3127.3,0.816]
[1720843909818,0.06664199,3127.4,3127.3,0.816]
[1720843910029,2.0754922,3127.4,3127.3,0.816]
[1720843912746,0.06664199,3127.4,3127.3,0.816]
[1720843912911,2.34365858,3127.6,3127.3,0.816]
[1720843913106,0.06671662,3127.5,3127.3,0.816]
[1720843913308,2.41068442,3127.5,3127.3,0.816]
[1720843913841,2.41068442,3127.5,3127.1,3.0]
[1720843913842,2.2949,3127.4,3126.8,2.23866]
[1720843914003,2.00901175,3126.9,3126.8,2.23866]
[1720843914346,0.06622852,3126.9,3126.8,2.23866]
[1720843914512,2.008474,3126.9,3126.8,2.23866]
[1720843914913,0.06622852,3126.9,3126.8,2.23866]
[1720843915237,2.00849651,3126.9,3126.7,0.816]
[1720843915447,0.06613549,3126.8,3126.7,0.816]
[1720843917615,2.00783959,3126.9,3126.7,0.816]